[Event "Late-Titled-Tuesday-Blitz-April-02-2024"]
[Site "Chess.com"]
[Date "2024.04.02"]
[Round "10"]
[White "Zavgorodniy_Sergiy"]
[Black "ImportedItalianMaple"]
[Result "1-0"]
[WhiteElo "2644"]
[BlackElo "2521"]
[TimeControl "180+1"]
[EndTime "15:50:32 PDT"]
[Termination "Zavgorodniy_Sergiy won by resignation"]

1. d4 {[%clk 0:03:00.9]} 1... g6 {[%clk 0:02:58.2]} 2. c4 {[%clk 0:02:59.3]}
2... Bg7 {[%clk 0:02:58.2]} 3. Nf3 {[%clk 0:03:00]} 3... a6 {[%clk 0:02:48.8]}
4. Nc3 {[%clk 0:02:58.4]} 4... d6 {[%clk 0:02:46.2]} 5. e4 {[%clk 0:02:58.4]}
5... Nc6 {[%clk 0:02:45.9]} 6. Be2 {[%clk 0:02:58.3]} 6... Bg4 {[%clk
0:02:45.7]} 7. Be3 {[%clk 0:02:58.5]} 7... e5 {[%clk 0:02:43.6]} 8. d5 {[%clk
0:02:56.1]} 8... Nce7 {[%clk 0:02:39.7]} 9. Nd2 {[%clk 0:02:52.2]} 9... Bd7
{[%clk 0:02:37.9]} 10. O-O {[%clk 0:02:51.2]} 10... b6 {[%clk 0:02:34.9]} 11. f4
{[%clk 0:02:49.2]} 11... exf4 {[%clk 0:02:30.5]} 12. Bxf4 {[%clk 0:02:50.1]}
12... f5 {[%clk 0:02:25.1]} 13. Nf3 {[%clk 0:02:45.8]} 13... Nf6 {[%clk
0:02:21.9]} 14. e5 {[%clk 0:02:45.3]} 14... dxe5 {[%clk 0:02:21.7]} 15. Bxe5
{[%clk 0:02:39.8]} 15... O-O {[%clk 0:02:20.1]} 16. Nd4 {[%clk 0:02:37.6]} 16...
Re8 {[%clk 0:02:13.1]} 17. Bf3 {[%clk 0:02:36.6]} 17... Rc8 {[%clk 0:02:07.7]}
18. Re1 {[%clk 0:02:30.4]} 18... c5 {[%clk 0:01:51.2]} 19. Nc2 {[%clk
0:02:00.9]} 19... b5 {[%clk 0:01:44.8]} 20. b3 {[%clk 0:01:59.9]} 20... b4
{[%clk 0:01:40.1]} 21. Ne2 {[%clk 0:01:59.7]} 21... Nexd5 {[%clk 0:01:28.9]} 22.
Bxd5+ {[%clk 0:01:55.9]} 22... Nxd5 {[%clk 0:01:24]} 23. Qxd5+ {[%clk
0:01:56.8]} 23... Be6 {[%clk 0:01:22.5]} 24. Qxd8 {[%clk 0:01:56.7]} 24... Rcxd8
{[%clk 0:01:23.4]} 25. Bxg7 {[%clk 0:01:56.7]} 25... Rd2 {[%clk 0:01:24]} 26.
Nf4 {[%clk 0:01:50.6]} 26... Kxg7 {[%clk 0:01:15.9]} 27. Rxe6 {[%clk 0:01:43.3]}
27... Rxe6 {[%clk 0:01:15.8]} 28. Nxe6+ {[%clk 0:01:44.2]} 28... Kf6 {[%clk
0:01:16.5]} 29. Nxc5 {[%clk 0:01:42.9]} 29... Rxc2 {[%clk 0:01:16.8]} 30. Nxa6
{[%clk 0:01:41.1]} 30... g5 {[%clk 0:01:17.3]} 31. Nxb4 {[%clk 0:01:41]} 31...
Rd2 {[%clk 0:01:18]} 32. a4 {[%clk 0:01:40.6]} 32... f4 {[%clk 0:01:18.6]} 33.
a5 {[%clk 0:01:40.6]} 33... g4 {[%clk 0:01:19.5]} 34. a6 {[%clk 0:01:40.7]} 1-0

[Event "Late-Titled-Tuesday-Blitz-April-02-2024"]
[Site "Chess.com"]
[Date "2024.04.02"]
[Round "10"]
[White "Szachulec75"]
[Black "cedchass2006"]
[Result "0-1"]
[WhiteElo "2079"]
[BlackElo "2425"]
[TimeControl "180+1"]
[EndTime "15:50:39 PDT"]
[Termination "cedchass2006 won by resignation"]

1. Nf3 {[%clk 0:03:00.9]} 1... d5 {[%clk 0:02:53.6]} 2. g3 {[%clk 0:02:52.6]}
2... Nf6 {[%clk 0:02:48.7]} 3. Bg2 {[%clk 0:02:51.5]} 3... Nc6 {[%clk
0:02:43.2]} 4. O-O {[%clk 0:02:51.9]} 4... e5 {[%clk 0:02:42.6]} 5. d3 {[%clk
0:02:52.4]} 5... Be6 {[%clk 0:02:42.1]} 6. c3 {[%clk 0:02:49.3]} 6... Qd7 {[%clk
0:02:42.4]} 7. Re1 {[%clk 0:02:48.2]} 7... Bh3 {[%clk 0:02:42.5]} 8. Bh1 {[%clk
0:02:47.9]} 8... h5 {[%clk 0:02:41.4]} 9. Bg5 {[%clk 0:02:46.7]} 9... Nh7 {[%clk
0:02:41]} 10. e4 {[%clk 0:02:46.2]} 10... Nxg5 {[%clk 0:02:19]} 11. Nxg5 {[%clk
0:02:42.7]} 11... Bg4 {[%clk 0:02:19.6]} 12. Qb3 {[%clk 0:02:36.2]} 12... dxe4
{[%clk 0:02:06.3]} 13. Qxb7 {[%clk 0:02:34.8]} 13... Rb8 {[%clk 0:02:06.3]} 14.
Qa6 {[%clk 0:02:33.5]} 14... Rb6 {[%clk 0:01:57.4]} 15. Qc4 {[%clk 0:02:33.8]}
15... exd3 {[%clk 0:01:47.6]} 16. Nxf7 {[%clk 0:02:04.5]} 16... Be6 {[%clk
0:01:37.8]} 17. Nxe5 {[%clk 0:01:19.5]} 17... Bxc4 {[%clk 0:01:29.8]} 18. Nxd7+
{[%clk 0:01:17.9]} 18... Kxd7 {[%clk 0:01:30.7]} 19. Nd2 {[%clk 0:01:17.4]}
19... Bf7 {[%clk 0:01:28.7]} 20. Re3 {[%clk 0:01:09.5]} 20... Rxb2 {[%clk
0:01:25.9]} 21. Rxd3+ {[%clk 0:01:08.8]} 21... Bd6 {[%clk 0:01:26.5]} 22. Nb3
{[%clk 0:01:02.2]} 22... Bxb3 {[%clk 0:01:23.1]} 0-1

[Event "Late-Titled-Tuesday-Blitz-April-02-2024"]
[Site "Chess.com"]
[Date "2024.04.02"]
[Round "10"]
[White "dropstoneDP"]
[Black "Kazan28"]
[Result "1-0"]
[WhiteElo "2998"]
[BlackElo "2699"]
[TimeControl "180+1"]
[EndTime "15:51:07 PDT"]
[Termination "dropstoneDP won by resignation"]

1. e4 {[%clk 0:03:00.9]} 1... e5 {[%clk 0:02:55.4]} 2. Nf3 {[%clk 0:03:00.9]}
2... Nc6 {[%clk 0:02:56.1]} 3. Bc4 {[%clk 0:03:01.4]} 3... Nf6 {[%clk
0:02:56.4]} 4. d3 {[%clk 0:03:01.1]} 4... Be7 {[%clk 0:02:56.8]} 5. Nc3 {[%clk
0:03:00.8]} 5... O-O {[%clk 0:02:57]} 6. a3 {[%clk 0:03:01.4]} 6... d6 {[%clk
0:02:57.4]} 7. h3 {[%clk 0:03:02]} 7... Be6 {[%clk 0:02:57.7]} 8. Nd5 {[%clk
0:03:00.7]} 8... Qd7 {[%clk 0:02:54.3]} 9. O-O {[%clk 0:02:53]} 9... Bd8 {[%clk
0:02:50.6]} 10. Bg5 {[%clk 0:02:50]} 10... Ne8 {[%clk 0:02:35.8]} 11. Be3 {[%clk
0:02:42.3]} 11... Nf6 {[%clk 0:02:28.6]} 12. Bg5 {[%clk 0:02:40.8]} 12... Ne8
{[%clk 0:02:28.7]} 13. Be3 {[%clk 0:02:35.8]} 13... Nf6 {[%clk 0:02:28.3]} 14.
Nxf6+ {[%clk 0:02:30.1]} 14... Bxf6 {[%clk 0:02:28.1]} 15. Bxe6 {[%clk
0:02:30.5]} 15... Qxe6 {[%clk 0:02:24.1]} 16. c4 {[%clk 0:02:30.5]} 16... g6
{[%clk 0:02:20.5]} 17. b4 {[%clk 0:02:27.4]} 17... Bg7 {[%clk 0:02:20.6]} 18.
Rc1 {[%clk 0:02:19.9]} 18... f5 {[%clk 0:02:20]} 19. exf5 {[%clk 0:02:16.1]}
19... gxf5 {[%clk 0:02:19.9]} 20. d4 {[%clk 0:02:15.8]} 20... Qg6 {[%clk
0:02:04.7]} 21. b5 {[%clk 0:02:08]} 21... Ne7 {[%clk 0:01:18.8]} 22. dxe5 {[%clk
0:02:07.8]} 22... dxe5 {[%clk 0:01:19.7]} 23. Qd7 {[%clk 0:02:06.1]} 23... Qd6
{[%clk 0:01:19.8]} 24. Rfd1 {[%clk 0:02:04.1]} 24... Qf6 {[%clk 0:00:57.3]} 25.
Bg5 {[%clk 0:02:02.5]} 25... Qg6 {[%clk 0:00:38.7]} 26. Bxe7 {[%clk 0:02:00.6]}
26... Rf7 {[%clk 0:00:35.9]} 27. Ng5 {[%clk 0:01:56.5]} 27... Bh6 {[%clk
0:00:24.6]} 28. Nxf7 {[%clk 0:01:51.9]} 28... Bxc1 {[%clk 0:00:24.4]} 29. Nxe5
{[%clk 0:01:51.5]} 1-0

[Event "Late-Titled-Tuesday-Blitz-April-02-2024"]
[Site "Chess.com"]
[Date "2024.04.02"]
[Round "10"]
[White "N_Mullodzhanov"]
[Black "fmcabralis"]
[Result "1-0"]
[WhiteElo "2542"]
[BlackElo "2390"]
[TimeControl "180+1"]
[EndTime "15:51:15 PDT"]
[Termination "N_Mullodzhanov won by resignation"]

1. e4 {[%clk 0:03:00.9]} 1... c5 {[%clk 0:03:00.2]} 2. c3 {[%clk 0:03:00.7]}
2... d5 {[%clk 0:02:58.6]} 3. exd5 {[%clk 0:03:01]} 3... Qxd5 {[%clk 0:02:59.5]}
4. d4 {[%clk 0:03:01.5]} 4... Nf6 {[%clk 0:02:57.2]} 5. Nf3 {[%clk 0:03:01.5]}
5... Bg4 {[%clk 0:02:55.2]} 6. Nbd2 {[%clk 0:02:54.2]} 6... cxd4 {[%clk
0:02:52.9]} 7. Bc4 {[%clk 0:02:54.2]} 7... Qd6 {[%clk 0:02:38.1]} 8. Qb3 {[%clk
0:02:46.4]} 8... Qb6 {[%clk 0:01:58.5]} 9. Bxf7+ {[%clk 0:02:42.7]} 9... Kd8
{[%clk 0:01:58.5]} 10. Qxb6+ {[%clk 0:02:42.9]} 10... axb6 {[%clk 0:01:58.5]}
11. Nxd4 {[%clk 0:02:43.7]} 11... Nc6 {[%clk 0:01:54.1]} 12. Ne6+ {[%clk
0:02:41.4]} 12... Kd7 {[%clk 0:01:53.1]} 13. Nxf8+ {[%clk 0:02:41.6]} 13...
Rhxf8 {[%clk 0:01:52.3]} 14. Bb3 {[%clk 0:02:40.4]} 14... Ne5 {[%clk 0:01:48.2]}
15. Bc2 {[%clk 0:02:37.1]} 15... b5 {[%clk 0:01:31.5]} 16. O-O {[%clk
0:02:33.7]} 16... Nc4 {[%clk 0:01:27.6]} 17. Ne4 {[%clk 0:02:24.6]} 17... b6
{[%clk 0:01:06.2]} 18. f3 {[%clk 0:02:20.7]} 18... Bh5 {[%clk 0:01:02.7]} 19. b3
{[%clk 0:02:13.8]} 19... Ne5 {[%clk 0:00:57]} 20. Bb2 {[%clk 0:01:58.9]} 20...
Rac8 {[%clk 0:00:48.1]} 21. Rad1+ {[%clk 0:01:56.3]} 21... Ke8 {[%clk
0:00:47.8]} 22. c4 {[%clk 0:01:46.9]} 22... Ned7 {[%clk 0:00:41.4]} 23. Nxf6+
{[%clk 0:01:26.4]} 23... Nxf6 {[%clk 0:00:36.9]} 24. Bd3 {[%clk 0:01:24.7]}
24... bxc4 {[%clk 0:00:35.1]} 25. Bxc4 {[%clk 0:01:25.2]} 25... Bf7 {[%clk
0:00:33.4]} 26. Bb5+ {[%clk 0:01:24.9]} 1-0

[Event "Late-Titled-Tuesday-Blitz-April-02-2024"]
[Site "Chess.com"]
[Date "2024.04.02"]
[Round "10"]
[White "NikitaShnadrygin"]
[Black "Jospem"]
[Result "0-1"]
[WhiteElo "2696"]
[BlackElo "3028"]
[TimeControl "180+1"]
[EndTime "15:51:22 PDT"]
[Termination "Jospem won by resignation"]

1. Nf3 {[%clk 0:03:00]} 1... a6 {[%clk 0:03:00.9]} 2. g3 {[%clk 0:02:59.8]} 2...
g6 {[%clk 0:03:01.1]} 3. Bg2 {[%clk 0:03:00.2]} 3... Bg7 {[%clk 0:03:02]} 4. d4
{[%clk 0:03:00.9]} 4... d6 {[%clk 0:03:02.9]} 5. O-O {[%clk 0:03:01.4]} 5... Nf6
{[%clk 0:03:03.6]} 6. b3 {[%clk 0:03:01.9]} 6... O-O {[%clk 0:03:04.2]} 7. Bb2
{[%clk 0:03:02.6]} 7... b5 {[%clk 0:03:04.8]} 8. Nbd2 {[%clk 0:03:01]} 8... Bb7
{[%clk 0:03:05.3]} 9. c4 {[%clk 0:03:01.8]} 9... Nbd7 {[%clk 0:03:05.6]} 10. Rc1
{[%clk 0:03:00.8]} 10... c5 {[%clk 0:03:06.2]} 11. e3 {[%clk 0:03:00]} 11... Rc8
{[%clk 0:03:01.3]} 12. Qe2 {[%clk 0:03:00]} 12... Qa5 {[%clk 0:03:01.2]} 13. a3
{[%clk 0:03:00]} 13... Qb6 {[%clk 0:03:01.1]} 14. Ba1 {[%clk 0:02:57.9]} 14...
b4 {[%clk 0:02:56.2]} 15. a4 {[%clk 0:02:57.7]} 15... Rfe8 {[%clk 0:02:54.5]}
16. Rfd1 {[%clk 0:02:52.8]} 16... e6 {[%clk 0:02:52.7]} 17. Qd3 {[%clk
0:02:51.8]} 17... e5 {[%clk 0:02:50.6]} 18. dxe5 {[%clk 0:02:40.8]} 18... dxe5
{[%clk 0:02:51.5]} 19. e4 {[%clk 0:02:41.4]} 19... Rcd8 {[%clk 0:02:51.7]} 20.
Qc2 {[%clk 0:02:34.8]} 20... Qc7 {[%clk 0:02:51.4]} 21. Ne1 {[%clk 0:02:33.7]}
21... Nb8 {[%clk 0:02:51]} 22. Nf1 {[%clk 0:02:33.6]} 22... Nc6 {[%clk 0:02:51]}
23. Ne3 {[%clk 0:02:33.4]} 23... Nd4 {[%clk 0:02:51.3]} 24. Bxd4 {[%clk
0:02:28.1]} 24... Rxd4 {[%clk 0:02:52.2]} 25. Nd5 {[%clk 0:02:29]} 25... Qd8
{[%clk 0:02:49.3]} 26. Nf3 {[%clk 0:02:26.7]} 26... Rxd1+ {[%clk 0:02:42.8]} 27.
Rxd1 {[%clk 0:02:27.6]} 27... Qb8 {[%clk 0:02:38.3]} 28. Nd2 {[%clk 0:02:19.9]}
28... Nd7 {[%clk 0:02:35.6]} 29. Bh3 {[%clk 0:02:18.3]} 29... Nf8 {[%clk
0:02:35.7]} 30. Nf1 {[%clk 0:02:09.3]} 30... Bc8 {[%clk 0:02:35.2]} 31. Bxc8
{[%clk 0:02:04.4]} 31... Qxc8 {[%clk 0:02:36.1]} 32. Qd3 {[%clk 0:01:59.3]}
32... Ne6 {[%clk 0:02:31.8]} 33. Nd2 {[%clk 0:01:59.9]} 33... Qb7 {[%clk
0:02:27.4]} 34. h4 {[%clk 0:01:53.9]} 34... h5 {[%clk 0:02:26.7]} 35. Nf3 {[%clk
0:01:34.5]} 35... Rf8 {[%clk 0:02:26.8]} 36. Ng5 {[%clk 0:01:32.2]} 36... Nd4
{[%clk 0:02:26.9]} 37. Nf3 {[%clk 0:01:30.6]} 37... f5 {[%clk 0:02:27.1]} 38.
Nxd4 {[%clk 0:01:30.2]} 38... cxd4 {[%clk 0:02:28]} 39. f4 {[%clk 0:01:17.1]}
39... Kh8 {[%clk 0:02:26.2]} 40. Re1 {[%clk 0:01:15.6]} 40... fxe4 {[%clk
0:02:09.9]} 41. Rxe4 {[%clk 0:01:11.1]} 41... Qf7 {[%clk 0:02:10.5]} 42. Qe2
{[%clk 0:00:51]} 42... Qf5 {[%clk 0:02:08]} 43. Kg2 {[%clk 0:00:51.5]} 43... a5
{[%clk 0:02:01.8]} 44. fxe5 {[%clk 0:00:45]} 44... d3 {[%clk 0:02:01.8]} 45.
Qxd3 {[%clk 0:00:45.4]} 45... Qf2+ {[%clk 0:02:01.7]} 46. Kh3 {[%clk 0:00:46]}
46... Rf3 {[%clk 0:02:00.1]} 0-1

[Event "Late-Titled-Tuesday-Blitz-April-02-2024"]
[Site "Chess.com"]
[Date "2024.04.02"]
[Round "10"]
[White "xberli"]
[Black "Bala-Afiada"]
[Result "1-0"]
[WhiteElo "2602"]
[BlackElo "1947"]
[TimeControl "180+1"]
[EndTime "15:51:22 PDT"]
[Termination "xberli won on time"]

1. c4 {[%clk 0:03:00.9]} 1... e6 {[%clk 0:02:52.6]} 2. Nc3 {[%clk 0:02:59.4]}
2... d5 {[%clk 0:02:50.7]} 3. Nf3 {[%clk 0:03:00.3]} 3... dxc4 {[%clk
0:02:50.2]} 4. e3 {[%clk 0:02:56.3]} 4... Nf6 {[%clk 0:02:48]} 5. Bxc4 {[%clk
0:02:56.6]} 5... Be7 {[%clk 0:02:46.2]} 6. b3 {[%clk 0:02:56.6]} 6... O-O {[%clk
0:02:46.1]} 7. Bb2 {[%clk 0:02:57]} 7... c5 {[%clk 0:02:45]} 8. g4 {[%clk
0:02:56.9]} 8... Nc6 {[%clk 0:02:41.1]} 9. g5 {[%clk 0:02:56.6]} 9... Nd7 {[%clk
0:02:41.2]} 10. Rg1 {[%clk 0:02:53.4]} 10... a6 {[%clk 0:02:36.4]} 11. Ne4
{[%clk 0:02:51.5]} 11... b5 {[%clk 0:02:32.9]} 12. Bd3 {[%clk 0:02:51.5]} 12...
Nb4 {[%clk 0:02:19.3]} 13. Bb1 {[%clk 0:02:48.3]} 13... c4 {[%clk 0:02:08.8]}
14. Nd4 {[%clk 0:02:36.6]} 14... Nd3+ {[%clk 0:01:59.3]} 15. Bxd3 {[%clk
0:02:34.9]} 15... cxd3 {[%clk 0:02:00.2]} 16. Qh5 {[%clk 0:02:33.2]} 16... e5
{[%clk 0:01:07.8]} 17. Nc6 {[%clk 0:02:24]} 17... Qe8 {[%clk 0:01:04]} 18. Nxe7+
{[%clk 0:02:23]} 18... Qxe7 {[%clk 0:01:03.1]} 19. f4 {[%clk 0:02:18.7]} 19...
g6 {[%clk 0:00:54.4]} 20. Qh6 {[%clk 0:02:15.6]} 20... f6 {[%clk 0:00:41.8]} 21.
Rc1 {[%clk 0:02:09.8]} 21... Bb7 {[%clk 0:00:20.1]} 22. gxf6 {[%clk 0:02:04.1]}
22... Nxf6 {[%clk 0:00:20]} 23. Nxf6+ {[%clk 0:02:03.4]} 23... Qxf6 {[%clk
0:00:20]} 24. Bxe5 {[%clk 0:02:03]} 24... Qf7 {[%clk 0:00:17.8]} 25. Rc7 {[%clk
0:02:01.2]} 25... Rac8 {[%clk 0:00:08.5]} 26. Rxg6+ {[%clk 0:01:55.6]} 26...
Qxg6 {[%clk 0:00:03.3]} 27. Rg7+ {[%clk 0:01:56.5]} 27... Kh8 {[%clk 0:00:01.8]}
28. Rxg6+ {[%clk 0:01:52.7]} 1-0

[Event "Late-Titled-Tuesday-Blitz-April-02-2024"]
[Site "Chess.com"]
[Date "2024.04.02"]
[Round "10"]
[White "rcmz"]
[Black "Darkdefense15"]
[Result "0-1"]
[WhiteElo "2211"]
[BlackElo "2383"]
[TimeControl "180+1"]
[EndTime "15:51:28 PDT"]
[Termination "Darkdefense15 won on time"]

1. b4 {[%clk 0:03:00.9]} 1... d5 {[%clk 0:02:58.2]} 2. Bb2 {[%clk 0:02:59.6]}
2... c6 {[%clk 0:02:58.5]} 3. e3 {[%clk 0:02:58]} 3... a5 {[%clk 0:02:58.5]} 4.
b5 {[%clk 0:02:55.6]} 4... Nf6 {[%clk 0:02:57.4]} 5. f4 {[%clk 0:02:54.4]} 5...
Nbd7 {[%clk 0:02:55.4]} 6. Nf3 {[%clk 0:02:54.3]} 6... e6 {[%clk 0:02:55.1]} 7.
c4 {[%clk 0:02:51.5]} 7... Nc5 {[%clk 0:02:52.1]} 8. Nc3 {[%clk 0:02:47.5]} 8...
dxc4 {[%clk 0:02:50.5]} 9. Bxc4 {[%clk 0:02:45.6]} 9... Nd3+ {[%clk 0:02:50.7]}
10. Bxd3 {[%clk 0:02:39.4]} 10... Qxd3 {[%clk 0:02:51.5]} 11. Ne5 {[%clk
0:02:38]} 11... Qd8 {[%clk 0:02:36.8]} 12. bxc6 {[%clk 0:02:36]} 12... bxc6
{[%clk 0:02:37.7]} 13. O-O {[%clk 0:02:33.1]} 13... Bd6 {[%clk 0:02:35.5]} 14.
Qa4 {[%clk 0:02:15.1]} 14... O-O {[%clk 0:02:31.7]} 15. Ne4 {[%clk 0:02:00.9]}
15... Ba6 {[%clk 0:02:15.4]} 16. Nxc6 {[%clk 0:01:46.4]} 16... Qb6 {[%clk
0:02:03.5]} 17. Bd4 {[%clk 0:01:41.5]} 17... Qb5 {[%clk 0:02:00.4]} 18. Nxf6+
{[%clk 0:01:38.7]} 18... gxf6 {[%clk 0:01:59.6]} 19. Qc2 {[%clk 0:00:36.9]}
19... Rfc8 {[%clk 0:01:52.5]} 20. Rf3 {[%clk 0:00:18.4]} 20... f5 {[%clk
0:01:37.2]} 21. Rc1 {[%clk 0:00:06.4]} 21... Bb7 {[%clk 0:01:34]} 22. Rg3+
{[%clk 0:00:06]} 22... Kf8 {[%clk 0:01:34.2]} 0-1

[Event "Late-Titled-Tuesday-Blitz-April-02-2024"]
[Site "Chess.com"]
[Date "2024.04.02"]
[Round "10"]
[White "VD_coach"]
[Black "tgpgoat"]
[Result "1-0"]
[WhiteElo "2591"]
[BlackElo "2443"]
[TimeControl "180+1"]
[EndTime "15:51:34 PDT"]
[Termination "VD_coach won by resignation"]

1. d4 {[%clk 0:03:00.9]} 1... Nf6 {[%clk 0:02:59.1]} 2. c4 {[%clk 0:03:00]} 2...
c5 {[%clk 0:02:59.8]} 3. e3 {[%clk 0:02:54.5]} 3... cxd4 {[%clk 0:02:59.6]} 4.
exd4 {[%clk 0:02:54.6]} 4... g6 {[%clk 0:03:00.5]} 5. Nc3 {[%clk 0:02:54.3]}
5... d5 {[%clk 0:03:01.1]} 6. Nf3 {[%clk 0:02:54.4]} 6... Bg7 {[%clk 0:03:01]}
7. cxd5 {[%clk 0:02:54.5]} 7... Nxd5 {[%clk 0:03:01]} 8. Bc4 {[%clk 0:02:52.9]}
8... Nxc3 {[%clk 0:02:59.7]} 9. bxc3 {[%clk 0:02:52.6]} 9... O-O {[%clk
0:03:00.2]} 10. O-O {[%clk 0:02:52.2]} 10... Qc7 {[%clk 0:03:00.7]} 11. Bb3
{[%clk 0:02:42]} 11... Nc6 {[%clk 0:02:54.5]} 12. Re1 {[%clk 0:02:39]} 12... Bg4
{[%clk 0:02:54.4]} 13. h3 {[%clk 0:02:38.5]} 13... Bf5 {[%clk 0:02:51.1]} 14.
Bg5 {[%clk 0:02:35.7]} 14... Rfe8 {[%clk 0:02:50.2]} 15. Bh4 {[%clk 0:02:30]}
15... e5 {[%clk 0:02:48.5]} 16. Ng5 {[%clk 0:02:15]} 16... Rf8 {[%clk
0:02:34.4]} 17. g4 {[%clk 0:02:09.5]} 17... h6 {[%clk 0:02:32.2]} 18. Nxf7
{[%clk 0:01:47.1]} 18... Rxf7 {[%clk 0:02:32.1]} 19. gxf5 {[%clk 0:01:45.6]}
19... gxf5 {[%clk 0:02:26.9]} 20. Qh5 {[%clk 0:01:44]} 20... Rf8 {[%clk
0:02:23.5]} 21. dxe5 {[%clk 0:01:20.6]} 21... Nxe5 {[%clk 0:02:17.9]} 22. Bg3
{[%clk 0:01:11.1]} 22... Qxc3 {[%clk 0:02:07]} 23. Bxe5 {[%clk 0:00:46.5]} 23...
Bxe5 {[%clk 0:02:06.2]} 24. Qg6+ {[%clk 0:00:46.4]} 24... Kh8 {[%clk 0:01:26.2]}
25. Qxh6+ {[%clk 0:00:45.7]} 25... Kg8 {[%clk 0:01:26.4]} 26. Qg6+ {[%clk
0:00:39.4]} 26... Kh8 {[%clk 0:01:26.7]} 27. Bxf7 {[%clk 0:00:38.4]} 27... Qxh3
{[%clk 0:01:09.3]} 28. Rxe5 {[%clk 0:00:32.4]} 1-0

[Event "Late-Titled-Tuesday-Blitz-April-02-2024"]
[Site "Chess.com"]
[Date "2024.04.02"]
[Round "10"]
[White "stollenmonster"]
[Black "Msb2"]
[Result "0-1"]
[WhiteElo "2872"]
[BlackElo "3043"]
[TimeControl "180+1"]
[EndTime "15:51:36 PDT"]
[Termination "Msb2 won by resignation"]

1. e4 {[%clk 0:03:00.9]} 1... e6 {[%clk 0:03:00.1]} 2. Nc3 {[%clk 0:03:00.8]}
2... d5 {[%clk 0:03:00.7]} 3. g3 {[%clk 0:03:01]} 3... dxe4 {[%clk 0:03:01.4]}
4. Nxe4 {[%clk 0:03:01.6]} 4... Bd7 {[%clk 0:03:02.1]} 5. Bg2 {[%clk 0:03:01.3]}
5... Bc6 {[%clk 0:03:02.8]} 6. Kf1 {[%clk 0:02:48.3]} 6... Be7 {[%clk
0:02:51.9]} 7. Ne2 {[%clk 0:02:46.8]} 7... Nf6 {[%clk 0:02:51.8]} 8. N2c3 {[%clk
0:02:42.8]} 8... O-O {[%clk 0:02:51.6]} 9. d3 {[%clk 0:02:41.9]} 9... Nxe4
{[%clk 0:02:48.1]} 10. Nxe4 {[%clk 0:02:40.6]} 10... f5 {[%clk 0:02:46.3]} 11.
Nc3 {[%clk 0:02:40.3]} 11... e5 {[%clk 0:02:41.7]} 12. Qe2 {[%clk 0:02:39.2]}
12... Bf6 {[%clk 0:02:40.7]} 13. Bd2 {[%clk 0:02:33.6]} 13... Qd7 {[%clk
0:02:37.3]} 14. Re1 {[%clk 0:02:29]} 14... Bxg2+ {[%clk 0:02:36.1]} 15. Kxg2
{[%clk 0:02:29.9]} 15... Nc6 {[%clk 0:02:36.9]} 16. Qf3 {[%clk 0:02:20.5]} 16...
e4 {[%clk 0:02:30.1]} 17. Qd1 {[%clk 0:02:15.8]} 17... Rad8 {[%clk 0:02:16.9]}
18. Bf4 {[%clk 0:02:12]} 18... g5 {[%clk 0:02:13.2]} 19. Be3 {[%clk 0:02:11.4]}
19... f4 {[%clk 0:02:03.1]} 20. gxf4 {[%clk 0:02:10.9]} 20... gxf4 {[%clk
0:02:04]} 21. Bxf4 {[%clk 0:02:10.7]} 21... Bxc3 {[%clk 0:02:02.2]} 22. Rxe4
{[%clk 0:02:08.8]} 22... Bxb2 {[%clk 0:01:54.3]} 23. Bg3 {[%clk 0:02:03.7]}
23... Be5 {[%clk 0:01:30]} 24. Qh5 {[%clk 0:01:50.4]} 24... Bxg3 {[%clk
0:01:10.9]} 25. hxg3 {[%clk 0:01:47]} 25... Qf5 {[%clk 0:01:11.2]} 26. Qe2
{[%clk 0:01:35.7]} 26... Nd4 {[%clk 0:01:05.6]} 27. Qe3 {[%clk 0:01:31.4]} 27...
Nxc2 {[%clk 0:00:53.8]} 28. Qe2 {[%clk 0:01:24.1]} 28... Nd4 {[%clk 0:00:53.5]}
29. Qe3 {[%clk 0:01:21.1]} 29... Qf3+ {[%clk 0:00:50.5]} 30. Qxf3 {[%clk
0:01:21]} 30... Nxf3 {[%clk 0:00:51.4]} 31. Re7 {[%clk 0:01:15.1]} 31... Ng5
{[%clk 0:00:49.8]} 32. Rxc7 {[%clk 0:01:10.5]} 32... Rf7 {[%clk 0:00:49.3]} 33.
Rc2 {[%clk 0:01:08.5]} 33... Rxd3 {[%clk 0:00:47.7]} 34. f4 {[%clk 0:01:09.2]}
34... Ne4 {[%clk 0:00:47.9]} 0-1

[Event "Late-Titled-Tuesday-Blitz-April-02-2024"]
[Site "Chess.com"]
[Date "2024.04.02"]
[Round "10"]
[White "Balla_Tamas"]
[Black "laskakid"]
[Result "0-1"]
[WhiteElo "2496"]
[BlackElo "2326"]
[TimeControl "180+1"]
[EndTime "15:51:39 PDT"]
[Termination "laskakid won by resignation"]

1. Nf3 {[%clk 0:03:00.9]} 1... d6 {[%clk 0:02:59.9]} 2. b3 {[%clk 0:03:00.9]}
2... e5 {[%clk 0:02:59.3]} 3. e4 {[%clk 0:03:00.1]} 3... Nf6 {[%clk 0:02:59]} 4.
Nc3 {[%clk 0:02:59.3]} 4... Be7 {[%clk 0:02:57.9]} 5. Bb2 {[%clk 0:02:59.6]}
5... O-O {[%clk 0:02:57.2]} 6. d4 {[%clk 0:03:00]} 6... Nbd7 {[%clk 0:02:56.5]}
7. Bc4 {[%clk 0:02:58.2]} 7... c6 {[%clk 0:02:55.9]} 8. a4 {[%clk 0:02:57.8]}
8... h6 {[%clk 0:02:51.2]} 9. O-O {[%clk 0:02:57.5]} 9... Re8 {[%clk 0:02:51.4]}
10. Qe2 {[%clk 0:02:54.3]} 10... a5 {[%clk 0:02:41.9]} 11. Rad1 {[%clk
0:02:50.6]} 11... Qc7 {[%clk 0:02:41.8]} 12. dxe5 {[%clk 0:02:48.8]} 12... dxe5
{[%clk 0:02:38.4]} 13. h3 {[%clk 0:02:38.4]} 13... Bb4 {[%clk 0:02:35.3]} 14.
Nb1 {[%clk 0:02:36]} 14... b6 {[%clk 0:02:27.4]} 15. Nh2 {[%clk 0:02:20.7]}
15... Nf8 {[%clk 0:02:18.6]} 16. Kh1 {[%clk 0:02:10.7]} 16... Ng6 {[%clk
0:02:18.3]} 17. Nd2 {[%clk 0:02:03]} 17... Nf4 {[%clk 0:02:12.2]} 18. Qe3 {[%clk
0:02:01.4]} 18... Bc5 {[%clk 0:02:09.9]} 19. Qe1 {[%clk 0:01:57.5]} 19... Bd7
{[%clk 0:01:58]} 20. Ndf3 {[%clk 0:01:57.2]} 20... Re7 {[%clk 0:01:38.3]} 21.
Qd2 {[%clk 0:01:49.2]} 21... Rae8 {[%clk 0:01:27]} 22. Nxe5 {[%clk 0:01:43.3]}
22... Nxh3 {[%clk 0:00:38.4]} 23. Nxd7 {[%clk 0:01:41.5]} 23... Rxd7 {[%clk
0:00:33.5]} 24. Qe2 {[%clk 0:01:20.4]} 24... Rxd1 {[%clk 0:00:32.8]} 25. Rxd1
{[%clk 0:01:18.4]} 25... Nxf2+ {[%clk 0:00:32.9]} 26. Kg1 {[%clk 0:01:14.3]}
26... Nxd1+ {[%clk 0:00:32.8]} 27. Kf1 {[%clk 0:01:14.4]} 27... Nxb2 {[%clk
0:00:29.5]} 28. Bd3 {[%clk 0:01:14.4]} 28... Qxh2 {[%clk 0:00:26.8]} 0-1